[Event "*** Titled Tuesday Blitz"]
[Site "Chess.com"]
[Date "2020.11.03"]
[Round "5"]
[White "redbaron8888"]
[Black "sergiochess83"]
[Result "1-0"]
[WhiteElo "2551"]
[BlackElo "2768"]
[TimeControl "180+1"]
[EndTime "11:00:07 PST"]
[Termination "redbaron8888 won by resignation"]

1. d4 {[%clk 0:03:00.9]} 1... Nf6 {[%clk 0:02:59.4]} 2. Bg5 {[%clk 0:02:59]}
2... d5 {[%clk 0:02:58]} 3. Nd2 {[%clk 0:02:58]} 3... c5 {[%clk 0:02:56.1]} 4.
dxc5 {[%clk 0:02:53.9]} 4... e6 {[%clk 0:02:54.5]} 5. e4 {[%clk 0:02:52.9]} 5...
Bxc5 {[%clk 0:02:52.2]} 6. Bd3 {[%clk 0:02:36.6]} 6... Nc6 {[%clk 0:02:44.1]} 7.
Ngf3 {[%clk 0:02:34.3]} 7... h6 {[%clk 0:02:24.4]} 8. Bh4 {[%clk 0:02:14.7]}
8... g5 {[%clk 0:01:30.6]} 9. Bg3 {[%clk 0:02:13.5]} 9... h5 {[%clk 0:01:31.1]}
10. Nxg5 {[%clk 0:01:52.9]} 10... h4 {[%clk 0:01:30.8]} 11. Bf4 {[%clk 0:01:52]}
11... e5 {[%clk 0:01:28.3]} 12. Nb3 {[%clk 0:01:42]} 12... exf4 {[%clk
0:01:25.1]} 13. Nxc5 {[%clk 0:01:39.1]} 13... Qa5+ {[%clk 0:01:25]} 14. Qd2
{[%clk 0:01:33.2]} 14... Qxc5 {[%clk 0:01:24.1]} 15. Qxf4 {[%clk 0:01:29.3]}
15... Qb4+ {[%clk 0:01:01.6]} 16. c3 {[%clk 0:01:27.9]} 16... Qxb2 {[%clk
0:01:00.2]} 17. O-O {[%clk 0:00:45.8]} 17... Qxc3 {[%clk 0:00:57.2]} 18. exd5
{[%clk 0:00:41.3]} 18... Ne7 {[%clk 0:00:42.8]} 19. Bb5+ {[%clk 0:00:36.7]}
19... Kf8 {[%clk 0:00:40.5]} 20. Rfc1 {[%clk 0:00:30.8]} 20... Qxa1 {[%clk
0:00:15.5]} 21. Rxa1 {[%clk 0:00:30.4]} 21... Nexd5 {[%clk 0:00:16.4]} 22. Qd6+
{[%clk 0:00:29.8]} 22... Kg7 {[%clk 0:00:16.6]} 23. Bc4 {[%clk 0:00:28.4]} 23...
Bf5 {[%clk 0:00:13.3]} 24. Qe5 {[%clk 0:00:22.9]} 24... Kg6 {[%clk 0:00:12.5]}
25. Nxf7 {[%clk 0:00:20.5]} 25... Rae8 {[%clk 0:00:10.4]} 26. Qd4 {[%clk
0:00:16.7]} 26... Kxf7 {[%clk 0:00:06.2]} 27. Bxd5+ {[%clk 0:00:16.4]} 27... Kg6
{[%clk 0:00:07.1]} 28. Bxb7 {[%clk 0:00:14.5]} 28... Re7 {[%clk 0:00:06]} 29.
Bf3 {[%clk 0:00:14]} 29... h3 {[%clk 0:00:05.5]} 30. g4 {[%clk 0:00:13.3]} 30...
Be4 {[%clk 0:00:03.5]} 31. Re1 {[%clk 0:00:11.1]} 31... Rhe8 {[%clk 0:00:02.8]}
32. Bxe4+ {[%clk 0:00:08.7]} 32... Rxe4 {[%clk 0:00:03.7]} 33. Rxe4 {[%clk
0:00:08.5]} 33... Rxe4 {[%clk 0:00:03.5]} 34. Qd2 {[%clk 0:00:09.1]} 34... Rxg4+
{[%clk 0:00:02.9]} 35. Kf1 {[%clk 0:00:09.6]} 35... Rg5 {[%clk 0:00:03.8]} 36.
f3 {[%clk 0:00:09.5]} 36... Rg2 {[%clk 0:00:03.5]} 37. Qd3+ {[%clk 0:00:09.5]}
37... Kg5 {[%clk 0:00:03.4]} 38. Qb5+ {[%clk 0:00:09.3]} 38... Kf4 {[%clk
0:00:03.1]} 39. Qc4+ {[%clk 0:00:08.7]} 39... Kf5 {[%clk 0:00:03.2]} 40. Qc5+
{[%clk 0:00:08.6]} 40... Kg6 {[%clk 0:00:03.1]} 41. Qxa7 {[%clk 0:00:08.7]}
41... Rxh2 {[%clk 0:00:03]} 42. Qc7 {[%clk 0:00:08.1]} 42... Rxa2 {[%clk
0:00:01.7]} 43. Qg3+ {[%clk 0:00:07.9]} 43... Kf7 {[%clk 0:00:01.3]} 44. Qxh3
{[%clk 0:00:08.2]} 44... Kg6 {[%clk 0:00:01.4]} 45. Qg3+ {[%clk 0:00:08.3]}
45... Kf7 {[%clk 0:00:01.1]} 46. Qe5 {[%clk 0:00:09.2]} 46... Kg6 {[%clk
0:00:01.3]} 47. Qc5 {[%clk 0:00:08.5]} 47... Ra1+ {[%clk 0:00:01]} 48. Ke2
{[%clk 0:00:08.2]} 48... Ra2+ {[%clk 0:00:01.9]} 49. Ke3 {[%clk 0:00:08.2]}
49... Ra1 {[%clk 0:00:02.8]} 50. Qc2+ {[%clk 0:00:07.8]} 50... Kf7 {[%clk
0:00:03]} 51. Qb3+ {[%clk 0:00:07.9]} 51... Kg6 {[%clk 0:00:03.1]} 52. Qc2+
{[%clk 0:00:08.2]} 52... Kf7 {[%clk 0:00:03.3]} 53. Qb2 {[%clk 0:00:09.1]} 53...
Re1+ {[%clk 0:00:02.6]} 54. Kf2 {[%clk 0:00:08.7]} 54... Re7 {[%clk 0:00:03.5]}
55. Qb3+ {[%clk 0:00:08.9]} 55... Kg6 {[%clk 0:00:03.5]} 56. Qb5 {[%clk
0:00:09.4]} 56... Rd7 {[%clk 0:00:03]} 57. f4 {[%clk 0:00:09.4]} 57... Rd5
{[%clk 0:00:03.9]} 58. Qb1+ {[%clk 0:00:09]} 58... Kf7 {[%clk 0:00:03.6]} 59.
Qb3 {[%clk 0:00:09.5]} 59... Kg6 {[%clk 0:00:03.5]} 60. Qg3+ {[%clk 0:00:09.3]}
60... Kf7 {[%clk 0:00:03.2]} 61. Qb3 {[%clk 0:00:09.9]} 61... Kg6 {[%clk
0:00:02.8]} 62. Kf3 {[%clk 0:00:10.3]} 62... Kf7 {[%clk 0:00:02.6]} 63. Qb7+
{[%clk 0:00:10.1]} 63... Kg6 {[%clk 0:00:02.7]} 64. Qb1+ {[%clk 0:00:10.6]}
64... Kf7 {[%clk 0:00:03.1]} 65. f5 {[%clk 0:00:11]} 65... Re5 {[%clk
0:00:02.2]} 66. Qb7+ {[%clk 0:00:10.8]} 66... Re7 {[%clk 0:00:03.1]} 67. Qb3+
{[%clk 0:00:09.4]} 67... Kg7 {[%clk 0:00:03.4]} 68. Kf4 {[%clk 0:00:09.4]} 68...
Rd7 {[%clk 0:00:04.3]} 69. Qg3+ {[%clk 0:00:08.7]} 69... Kf7 {[%clk 0:00:04.4]}
70. Qg6+ {[%clk 0:00:08.9]} 70... Ke7 {[%clk 0:00:04.3]} 71. Qg7+ {[%clk
0:00:08.9]} 1-0

[Event "*** Titled Tuesday Blitz"]
[Site "Chess.com"]
[Date "2020.11.03"]
[Round "5"]
[White "monalize"]
[Black "Fischerev7"]
[Result "0-1"]
[WhiteElo "2262"]
[BlackElo "2414"]
[TimeControl "180+1"]
[EndTime "11:00:09 PST"]
[Termination "Fischerev7 won on time"]

1. e4 {[%clk 0:03:00.9]} 1... c5 {[%clk 0:02:59.9]} 2. Nf3 {[%clk 0:02:59.5]}
2... d6 {[%clk 0:03:00.4]} 3. d4 {[%clk 0:02:58.9]} 3... cxd4 {[%clk 0:03:01.3]}
4. Qxd4 {[%clk 0:02:58.5]} 4... Nc6 {[%clk 0:03:01.1]} 5. Qe3 {[%clk 0:02:57.6]}
5... g6 {[%clk 0:02:58.5]} 6. Be2 {[%clk 0:02:55.6]} 6... Bh6 {[%clk 0:02:55.1]}
7. Qc3 {[%clk 0:02:54.4]} 7... e5 {[%clk 0:02:25.7]} 8. Bxh6 {[%clk 0:02:51.7]}
8... Nxh6 {[%clk 0:02:26.6]} 9. O-O {[%clk 0:02:51]} 9... O-O {[%clk 0:02:26.5]}
10. Rd1 {[%clk 0:02:50.2]} 10... Qe7 {[%clk 0:02:24.8]} 11. Qa3 {[%clk
0:02:47.6]} 11... Rd8 {[%clk 0:02:23.4]} 12. Nc3 {[%clk 0:02:47.1]} 12... Bg4
{[%clk 0:02:20.2]} 13. Nd5 {[%clk 0:02:43.9]} 13... Qf8 {[%clk 0:02:08.8]} 14.
c3 {[%clk 0:02:29.1]} 14... Be6 {[%clk 0:02:07.6]} 15. Nc7 {[%clk 0:02:23.7]}
15... Rac8 {[%clk 0:02:04.3]} 16. Nxe6 {[%clk 0:02:22.9]} 16... fxe6 {[%clk
0:02:05.2]} 17. Qb3 {[%clk 0:02:16.3]} 17... Qe7 {[%clk 0:01:54.1]} 18. a4
{[%clk 0:02:06.6]} 18... Kh8 {[%clk 0:01:48.2]} 19. a5 {[%clk 0:02:05.7]} 19...
Ng8 {[%clk 0:01:43.7]} 20. Rd2 {[%clk 0:01:47.7]} 20... Nf6 {[%clk 0:01:42.1]}
21. Qc2 {[%clk 0:01:43.8]} 21... d5 {[%clk 0:01:40.8]} 22. Bd3 {[%clk
0:01:36.8]} 22... d4 {[%clk 0:01:22.2]} 23. Qa4 {[%clk 0:01:31.4]} 23... dxc3
{[%clk 0:01:17.1]} 24. bxc3 {[%clk 0:01:30.4]} 24... Qc5 {[%clk 0:01:16.9]} 25.
a6 {[%clk 0:01:10.4]} 25... b6 {[%clk 0:01:12.2]} 26. Rad1 {[%clk 0:01:04.7]}
26... Nh5 {[%clk 0:00:57.5]} 27. g3 {[%clk 0:01:00.5]} 27... Rf8 {[%clk
0:00:55.2]} 28. Ng5 {[%clk 0:00:56]} 28... Qe7 {[%clk 0:00:49.6]} 29. h4 {[%clk
0:00:54.7]} 29... Qf6 {[%clk 0:00:38.5]} 30. Bb5 {[%clk 0:00:53]} 30... Ne7
{[%clk 0:00:31.2]} 31. Qb4 {[%clk 0:00:50.8]} 31... Rc5 {[%clk 0:00:25.7]} 32.
Bd7 {[%clk 0:00:48.3]} 32... Nc6 {[%clk 0:00:12]} 33. Qb2 {[%clk 0:00:45.5]}
33... Nd8 {[%clk 0:00:12]} 34. Qa2 {[%clk 0:00:41.9]} 34... h6 {[%clk
0:00:07.8]} 35. Nxe6 {[%clk 0:00:40.5]} 35... Nxe6 {[%clk 0:00:08.4]} 36. Qxe6
{[%clk 0:00:37.9]} 36... Rxc3 {[%clk 0:00:08]} 37. Qxf6+ {[%clk 0:00:36.2]}
37... Nxf6 {[%clk 0:00:08.9]} 38. Rd6 {[%clk 0:00:21]} 38... Nxe4 {[%clk
0:00:08]} 39. Rxg6 {[%clk 0:00:19.2]} 39... Nxf2 {[%clk 0:00:07.7]} 40. Rf1
{[%clk 0:00:16.8]} 40... Rcf3 {[%clk 0:00:06]} 41. Kg2 {[%clk 0:00:14.6]} 41...
Kh7 {[%clk 0:00:05.2]} 42. Re6 {[%clk 0:00:13.8]} 42... R3f7 {[%clk 0:00:05]}
43. Bc6 {[%clk 0:00:12.9]} 43... Ng4 {[%clk 0:00:03.4]} 44. Rxf7+ {[%clk
0:00:11.6]} 44... Rxf7 {[%clk 0:00:04.3]} 45. Be4+ {[%clk 0:00:10.6]} 45... Kg7
{[%clk 0:00:04.2]} 46. Rg6+ {[%clk 0:00:09.7]} 46... Kf8 {[%clk 0:00:04.2]} 47.
Rxg4 {[%clk 0:00:10.6]} 47... Rc7 {[%clk 0:00:04.5]} 48. Rg6 {[%clk 0:00:10.4]}
48... h5 {[%clk 0:00:04.2]} 49. Rh6 {[%clk 0:00:09.1]} 49... Rc4 {[%clk
0:00:04.6]} 50. Bb7 {[%clk 0:00:08.7]} 50... b5 {[%clk 0:00:04.9]} 51. Rxh5
{[%clk 0:00:07.9]} 51... b4 {[%clk 0:00:05.4]} 52. Rxe5 {[%clk 0:00:07.7]} 52...
b3 {[%clk 0:00:05.2]} 53. Rb5 {[%clk 0:00:07.4]} 53... Rc2+ {[%clk 0:00:04.4]}
54. Kh3 {[%clk 0:00:07.3]} 54... b2 {[%clk 0:00:05.3]} 55. h5 {[%clk 0:00:07.6]}
55... Kg7 {[%clk 0:00:05.8]} 56. Kh4 {[%clk 0:00:06.8]} 56... Kh6 {[%clk
0:00:05.9]} 57. Kg4 {[%clk 0:00:05.2]} 57... Rc4+ {[%clk 0:00:05.3]} 58. Kf3
{[%clk 0:00:04]} 58... Rc3+ {[%clk 0:00:05.5]} 59. Kf2 {[%clk 0:00:03.9]} 59...
Rc2+ {[%clk 0:00:05.9]} 60. Ke3 {[%clk 0:00:04]} 60... Kg7 {[%clk 0:00:05.4]}
0-1

[Event "*** Titled Tuesday Blitz"]
[Site "Chess.com"]
[Date "2020.11.03"]
[Round "5"]
[White "VitaliyBernadskiy"]
[Black "Chopper1905"]
[Result "0-1"]
[WhiteElo "2756"]
[BlackElo "2925"]
[TimeControl "180+1"]
[EndTime "11:00:10 PST"]
[Termination "Chopper1905 won on time"]

1. e4 {[%clk 0:03:00.9]} 1... e5 {[%clk 0:02:58.7]} 2. Nf3 {[%clk 0:03:00.5]}
2... Nc6 {[%clk 0:02:56.3]} 3. Bb5 {[%clk 0:03:00.6]} 3... a6 {[%clk 0:02:50.3]}
4. Ba4 {[%clk 0:03:00.3]} 4... Nf6 {[%clk 0:02:50.9]} 5. d3 {[%clk 0:03:00.8]}
5... b5 {[%clk 0:02:50.7]} 6. Bb3 {[%clk 0:03:00.6]} 6... Bc5 {[%clk 0:02:51.3]}
7. O-O {[%clk 0:02:59.7]} 7... h6 {[%clk 0:02:44.1]} 8. Nc3 {[%clk 0:02:58.3]}
8... d6 {[%clk 0:02:38.3]} 9. a3 {[%clk 0:02:54.1]} 9... O-O {[%clk 0:02:31.7]}
10. Nd5 {[%clk 0:02:46.4]} 10... Be6 {[%clk 0:02:29.9]} 11. Be3 {[%clk
0:02:40.1]} 11... Ba7 {[%clk 0:02:10.5]} 12. c4 {[%clk 0:02:20.1]} 12... Na5
{[%clk 0:02:01.6]} 13. cxb5 {[%clk 0:01:57.6]} 13... axb5 {[%clk 0:01:44.5]} 14.
Ba2 {[%clk 0:01:53.2]} 14... c5 {[%clk 0:01:25.8]} 15. b4 {[%clk 0:01:46.7]}
15... Nc6 {[%clk 0:01:26]} 16. Rc1 {[%clk 0:01:40.3]} 16... Nd4 {[%clk
0:01:21.9]} 17. Nxf6+ {[%clk 0:00:52.8]} 17... Qxf6 {[%clk 0:01:21.7]} 18. Bxe6
{[%clk 0:00:53.1]} 18... fxe6 {[%clk 0:01:18.5]} 19. Bxd4 {[%clk 0:00:51]} 19...
exd4 {[%clk 0:01:17.3]} 20. e5 {[%clk 0:00:47.6]} 20... dxe5 {[%clk 0:01:10.5]}
21. bxc5 {[%clk 0:00:47]} 21... e4 {[%clk 0:01:06.8]} 22. dxe4 {[%clk
0:00:43.8]} 22... e5 {[%clk 0:01:06.6]} 23. Qb3+ {[%clk 0:00:39.6]} 23... Kh7
{[%clk 0:01:06.6]} 24. Ne1 {[%clk 0:00:39]} 24... Qg6 {[%clk 0:00:56.3]} 25. f3
{[%clk 0:00:37.6]} 25... Bb8 {[%clk 0:00:53.4]} 26. Nd3 {[%clk 0:00:36]} 26...
Qa6 {[%clk 0:00:53.9]} 27. Rb1 {[%clk 0:00:28.4]} 27... Bc7 {[%clk 0:00:54.3]}
28. Qxb5 {[%clk 0:00:28.3]} 28... Qxb5 {[%clk 0:00:53.7]} 29. Rxb5 {[%clk
0:00:29.2]} 29... Rxa3 {[%clk 0:00:54.4]} 30. Rd1 {[%clk 0:00:27.1]} 30... Ra2
{[%clk 0:00:28.1]} 31. Rb7 {[%clk 0:00:20.5]} 31... Bd8 {[%clk 0:00:22.9]} 32.
Nxe5 {[%clk 0:00:19.8]} 32... Bg5 {[%clk 0:00:23.5]} 33. Nd3 {[%clk 0:00:17.3]}
33... Be3+ {[%clk 0:00:23.8]} 34. Kh1 {[%clk 0:00:15.7]} 34... Rc2 {[%clk
0:00:22.8]} 35. h4 {[%clk 0:00:08.6]} 35... Ra8 {[%clk 0:00:23]} 36. Re7 {[%clk
0:00:03.5]} 36... Raa2 {[%clk 0:00:23]} 37. Ne1 {[%clk 0:00:03.9]} 37... Rf2
{[%clk 0:00:23.6]} 38. Kh2 {[%clk 0:00:03.9]} 38... Rf1 {[%clk 0:00:23.6]} 39.
Kg3 {[%clk 0:00:04.2]} 39... Bf2+ {[%clk 0:00:23.6]} 40. Kf4 {[%clk 0:00:04.8]}
40... Rxe1 {[%clk 0:00:20.6]} 41. Rxe1 {[%clk 0:00:05]} 41... Bxe1 {[%clk
0:00:21.5]} 42. Rd7 {[%clk 0:00:05.7]} 42... Rc2 {[%clk 0:00:19.6]} 43. Rxd4
{[%clk 0:00:05.4]} 43... Rxc5 {[%clk 0:00:19.3]} 44. Kg4 {[%clk 0:00:05.2]}
44... h5+ {[%clk 0:00:17.6]} 45. Kh3 {[%clk 0:00:04.9]} 45... Rc1 {[%clk
0:00:17.6]} 46. g3 {[%clk 0:00:04.6]} 46... Bf2 {[%clk 0:00:17.3]} 47. Rd2
{[%clk 0:00:04.4]} 47... Be3 {[%clk 0:00:16.3]} 48. Re2 {[%clk 0:00:04.7]} 48...
Bd4 {[%clk 0:00:15.5]} 49. f4 {[%clk 0:00:04.8]} 49... Rg1 {[%clk 0:00:13.7]}
50. Rd2 {[%clk 0:00:04.1]} 50... Be3 {[%clk 0:00:13.6]} 51. Re2 {[%clk
0:00:04.1]} 51... Bd4 {[%clk 0:00:14.1]} 52. Rd2 {[%clk 0:00:04.3]} 52... Bc3
{[%clk 0:00:14.5]} 53. Re2 {[%clk 0:00:04.4]} 53... Kg6 {[%clk 0:00:12.2]} 54.
Re3 {[%clk 0:00:03.8]} 54... Bd4 {[%clk 0:00:09.3]} 55. Rd3 {[%clk 0:00:04]}
55... Bf6 {[%clk 0:00:07.8]} 56. Re3 {[%clk 0:00:03.5]} 56... Kf7 {[%clk
0:00:06.8]} 57. Rd3 {[%clk 0:00:03.8]} 57... Ke6 {[%clk 0:00:07.1]} 58. Rb3
{[%clk 0:00:04.3]} 58... Re1 {[%clk 0:00:06.8]} 59. Rb6+ {[%clk 0:00:03.7]}
59... Kf7 {[%clk 0:00:07]} 60. e5 {[%clk 0:00:04.6]} 60... Be7 {[%clk
0:00:07.2]} 61. Kg2 {[%clk 0:00:04.6]} 61... Rc1 {[%clk 0:00:05.1]} 62. Kf3
{[%clk 0:00:04.3]} 62... Rc3+ {[%clk 0:00:05.3]} 0-1

[Event "*** Titled Tuesday Blitz"]
[Site "Chess.com"]
[Date "2020.11.03"]
[Round "5"]
[White "XDPS"]
[Black "TigrVShlyape"]
[Result "1-0"]
[WhiteElo "2676"]
[BlackElo "2884"]
[TimeControl "180+1"]
[EndTime "11:00:13 PST"]
[Termination "XDPS won on time"]

1. e4 {[%clk 0:03:00.9]} 1... c5 {[%clk 0:02:57.1]} 2. Nf3 {[%clk 0:03:00.4]}
2... e6 {[%clk 0:02:49]} 3. d4 {[%clk 0:02:59.9]} 3... cxd4 {[%clk 0:02:48.1]}
4. Nxd4 {[%clk 0:03:00.8]} 4... a6 {[%clk 0:02:47.4]} 5. Be2 {[%clk 0:03:00.2]}
5... b6 {[%clk 0:02:44.6]} 6. O-O {[%clk 0:02:54]} 6... Bb7 {[%clk 0:02:44.4]}
7. Nc3 {[%clk 0:02:54]} 7... Qc7 {[%clk 0:02:40.3]} 8. f4 {[%clk 0:02:49.5]}
8... Nc6 {[%clk 0:02:32.6]} 9. Be3 {[%clk 0:02:40]} 9... Bc5 {[%clk 0:02:30.1]}
10. Kh1 {[%clk 0:02:29.8]} 10... Nge7 {[%clk 0:02:26.6]} 11. Ndb5 {[%clk
0:01:32.1]} 11... axb5 {[%clk 0:02:23.9]} 12. Nxb5 {[%clk 0:01:33]} 12... Qb8
{[%clk 0:02:20.3]} 13. Bxc5 {[%clk 0:01:33.1]} 13... bxc5 {[%clk 0:02:19.6]} 14.
Nd6+ {[%clk 0:01:33.4]} 14... Kf8 {[%clk 0:02:18.9]} 15. f5 {[%clk 0:01:33.7]}
15... f6 {[%clk 0:01:56.1]} 16. c3 {[%clk 0:00:55.4]} 16... Ne5 {[%clk
0:01:50.9]} 17. Qd2 {[%clk 0:00:47.8]} 17... h5 {[%clk 0:01:36.5]} 18. Rad1
{[%clk 0:00:44.5]} 18... Ba6 {[%clk 0:01:32.8]} 19. fxe6 {[%clk 0:00:42.3]}
19... dxe6 {[%clk 0:01:29.2]} 20. Qg5 {[%clk 0:00:16.8]} 20... Nd7 {[%clk
0:00:41.8]} 21. Bxa6 {[%clk 0:00:13.5]} 21... Rxa6 {[%clk 0:00:41]} 22. e5
{[%clk 0:00:13.9]} 22... f5 {[%clk 0:00:35.9]} 23. Nxf5 {[%clk 0:00:12.1]} 23...
exf5 {[%clk 0:00:29.3]} 24. Rxd7 {[%clk 0:00:12.7]} 24... Qe8 {[%clk 0:00:25.8]}
25. Rd6 {[%clk 0:00:03.2]} 25... Rh6 {[%clk 0:00:23.6]} 26. Rd2 {[%clk
0:00:01.4]} 26... Kg8 {[%clk 0:00:23]} 27. Rdf2 {[%clk 0:00:01.7]} 27... Kh7
{[%clk 0:00:23]} 28. Qf4 {[%clk 0:00:02]} 28... Rxa2 {[%clk 0:00:21.9]} 29. h3
{[%clk 0:00:01.8]} 29... h4 {[%clk 0:00:21.6]} 30. Qc4 {[%clk 0:00:02.1]} 30...
Qa4 {[%clk 0:00:20.6]} 31. Qf7 {[%clk 0:00:01.6]} 31... Qa7 {[%clk 0:00:20.1]}
32. e6 {[%clk 0:00:01.9]} 32... Ra1 {[%clk 0:00:18.4]} 33. Rxa1 {[%clk
0:00:01.3]} 33... Qxa1+ {[%clk 0:00:17.9]} 34. Kh2 {[%clk 0:00:02.2]} 34... Qe1
{[%clk 0:00:17.6]} 35. Rf3 {[%clk 0:00:02.3]} 35... Qxe6 {[%clk 0:00:17.6]} 36.
Qe8 {[%clk 0:00:02.3]} 36... Qe5+ {[%clk 0:00:17.4]} 37. Kg1 {[%clk 0:00:02.2]}
37... Nc6 {[%clk 0:00:17.2]} 38. Qd7 {[%clk 0:00:01.9]} 38... Rd6 {[%clk
0:00:16.3]} 39. Qxf5+ {[%clk 0:00:01.7]} 39... Qxf5 {[%clk 0:00:16.5]} 40. Rxf5
{[%clk 0:00:02.6]} 40... Rd2 {[%clk 0:00:13.5]} 41. Rxc5 {[%clk 0:00:02.6]}
41... Ne7 {[%clk 0:00:13.7]} 42. Rh5+ {[%clk 0:00:02.9]} 42... Kg6 {[%clk
0:00:13]} 43. Rxh4 {[%clk 0:00:03.8]} 43... Rxb2 {[%clk 0:00:13]} 44. Rg4+
{[%clk 0:00:04.7]} 44... Kf6 {[%clk 0:00:12.7]} 45. Rd4 {[%clk 0:00:05.6]} 45...
Rc2 {[%clk 0:00:12.1]} 46. Rc4 {[%clk 0:00:05.6]} 46... Nf5 {[%clk 0:00:11.9]}
47. Rc6+ {[%clk 0:00:05.6]} 47... Ke5 {[%clk 0:00:12.1]} 48. Rc5+ {[%clk
0:00:05.6]} 48... Kf4 {[%clk 0:00:11.8]} 49. Rc4+ {[%clk 0:00:06]} 49... Kg5
{[%clk 0:00:11.6]} 50. Rc5 {[%clk 0:00:05.4]} 50... Kg6 {[%clk 0:00:11.5]} 51.
Rc6+ {[%clk 0:00:04.5]} 51... Kh7 {[%clk 0:00:11.7]} 52. Rc4 {[%clk 0:00:03.8]}
52... Ne3 {[%clk 0:00:08.9]} 53. Rh4+ {[%clk 0:00:04.3]} 53... Kg8 {[%clk
0:00:08.9]} 54. g4 {[%clk 0:00:04.4]} 54... Rxc3 {[%clk 0:00:07.8]} 55. Rh5
{[%clk 0:00:05]} 55... Rc2 {[%clk 0:00:06.7]} 56. Re5 {[%clk 0:00:04.4]} 56...
Nc4 {[%clk 0:00:06.3]} 57. Re8+ {[%clk 0:00:04.3]} 57... Kf7 {[%clk 0:00:06.1]}
58. Re4 {[%clk 0:00:04.9]} 58... Nd6 {[%clk 0:00:05.4]} 59. Rf4+ {[%clk
0:00:05.1]} 59... Ke6 {[%clk 0:00:05.6]} 60. Ra4 {[%clk 0:00:05.3]} 60... Ke5
{[%clk 0:00:05.5]} 61. Ra3 {[%clk 0:00:05.2]} 61... Ne4 {[%clk 0:00:05.2]} 62.
Ra7 {[%clk 0:00:05.2]} 62... g5 {[%clk 0:00:04.9]} 63. Rf7 {[%clk 0:00:05.7]}
63... Kd4 {[%clk 0:00:04.8]} 64. Rf3 {[%clk 0:00:04.4]} 64... Rc3 {[%clk
0:00:04.3]} 65. Rxc3 {[%clk 0:00:01.8]} 65... Kxc3 {[%clk 0:00:03.5]} 66. Kh2
{[%clk 0:00:02.1]} 1-0

[Event "*** Titled Tuesday Blitz"]
[Site "Chess.com"]
[Date "2020.11.03"]
[Round "5"]
[White "Snegokhod"]
[Black "Kaua18"]
[Result "0-1"]
[WhiteElo "2466"]
[BlackElo "2328"]
[TimeControl "180+1"]
[EndTime "11:00:14 PST"]
[Termination "Kaua18 won by resignation"]

1. e4 {[%clk 0:03:00.9]} 1... c5 {[%clk 0:02:59.8]} 2. Nf3 {[%clk 0:03:00.5]}
2... Nc6 {[%clk 0:03:00.3]} 3. d4 {[%clk 0:02:59.5]} 3... cxd4 {[%clk
0:03:01.2]} 4. Nxd4 {[%clk 0:02:59.4]} 4... Nf6 {[%clk 0:03:01.8]} 5. Nc3 {[%clk
0:02:59]} 5... e5 {[%clk 0:03:02.1]} 6. Nxc6 {[%clk 0:02:59]} 6... bxc6 {[%clk
0:03:01.9]} 7. Bc4 {[%clk 0:02:57.6]} 7... Bb4 {[%clk 0:03:01.1]} 8. O-O {[%clk
0:02:57.2]} 8... O-O {[%clk 0:02:59.8]} 9. Qe2 {[%clk 0:02:55.6]} 9... Re8
{[%clk 0:02:46.8]} 10. Bg5 {[%clk 0:02:54.6]} 10... h6 {[%clk 0:02:45.7]} 11.
Bh4 {[%clk 0:02:52.2]} 11... Bxc3 {[%clk 0:02:38.2]} 12. bxc3 {[%clk 0:02:51.8]}
12... d6 {[%clk 0:02:37]} 13. Rad1 {[%clk 0:02:49.8]} 13... Qe7 {[%clk
0:02:34.8]} 14. Bb3 {[%clk 0:02:43.1]} 14... Bb7 {[%clk 0:02:27.7]} 15. Rd3
{[%clk 0:02:34.7]} 15... Ba6 {[%clk 0:02:25.8]} 16. c4 {[%clk 0:02:32.6]} 16...
Rad8 {[%clk 0:02:25.8]} 17. Rfd1 {[%clk 0:02:31.6]} 17... g5 {[%clk 0:02:22.6]}
18. Bg3 {[%clk 0:02:30.9]} 18... Nh7 {[%clk 0:02:15.6]} 19. f3 {[%clk
0:02:30.6]} 19... Nf8 {[%clk 0:02:15.3]} 20. Qd2 {[%clk 0:02:28.2]} 20... Ne6
{[%clk 0:01:41.4]} 21. Rxd6 {[%clk 0:02:25.4]} 21... Nd4 {[%clk 0:01:41.2]} 22.
Rxd8 {[%clk 0:01:55.4]} 22... Rxd8 {[%clk 0:01:42.1]} 23. Qe1 {[%clk 0:01:53.9]}
23... Rb8 {[%clk 0:00:33.9]} 24. Bf2 {[%clk 0:01:50.1]} 24... c5 {[%clk
0:00:30.3]} 25. Qa5 {[%clk 0:01:44.2]} 25... Rb6 {[%clk 0:00:23.8]} 26. h3
{[%clk 0:01:33.7]} 26... Kg7 {[%clk 0:00:17.8]} 27. c3 {[%clk 0:01:27.5]} 27...
Ne6 {[%clk 0:00:12.5]} 28. Rd5 {[%clk 0:01:21.8]} 28... Bb7 {[%clk 0:00:04.6]}
29. Rxe5 {[%clk 0:01:08.6]} 29... Qd6 {[%clk 0:00:04.7]} 30. Rd5 {[%clk
0:01:06.7]} 30... Bxd5 {[%clk 0:00:04.5]} 31. cxd5 {[%clk 0:01:06.6]} 31... Nf4
{[%clk 0:00:04.8]} 32. Bxc5 {[%clk 0:01:01.4]} 32... Qf6 {[%clk 0:00:04.8]} 33.
Bd4 {[%clk 0:01:00.6]} 33... Ne2+ {[%clk 0:00:05]} 34. Kh2 {[%clk 0:01:00]}
34... Nxd4 {[%clk 0:00:05.7]} 35. cxd4 {[%clk 0:00:59.4]} 35... Qxd4 {[%clk
0:00:06.3]} 36. Qe1 {[%clk 0:00:56.4]} 36... Qe5+ {[%clk 0:00:05.2]} 37. Qg3
{[%clk 0:00:53.8]} 37... Qxg3+ {[%clk 0:00:02.7]} 38. Kxg3 {[%clk 0:00:54.1]}
38... Kf6 {[%clk 0:00:03.6]} 39. Kf2 {[%clk 0:00:50.4]} 39... Ke5 {[%clk
0:00:04]} 40. Ke3 {[%clk 0:00:49.9]} 40... Rb4 {[%clk 0:00:02.9]} 41. g3 {[%clk
0:00:49]} 41... f6 {[%clk 0:00:02.3]} 42. f4+ {[%clk 0:00:48.9]} 42... gxf4+
{[%clk 0:00:03.2]} 43. gxf4+ {[%clk 0:00:48.9]} 43... Kd6 {[%clk 0:00:04.1]} 44.
Kf3 {[%clk 0:00:47.1]} 44... a5 {[%clk 0:00:04.5]} 45. Kg4 {[%clk 0:00:44.4]}
45... a4 {[%clk 0:00:04.9]} 46. Bc2 {[%clk 0:00:43.9]} 46... Rc4 {[%clk
0:00:05.3]} 47. Bd3 {[%clk 0:00:43.4]} 47... Rc3 {[%clk 0:00:04.6]} 48. Bb5
{[%clk 0:00:40.6]} 48... Ra3 {[%clk 0:00:03]} 49. Kf5 {[%clk 0:00:37.8]} 49...
Rxh3 {[%clk 0:00:02]} 50. Bxa4 {[%clk 0:00:33.2]} 50... Rg3 {[%clk 0:00:02.1]}
51. Kxf6 {[%clk 0:00:30.6]} 51... h5 {[%clk 0:00:02.8]} 52. Bc6 {[%clk
0:00:28.7]} 52... h4 {[%clk 0:00:02.7]} 53. e5+ {[%clk 0:00:29.1]} 53... Kc7
{[%clk 0:00:03.2]} 54. e6 {[%clk 0:00:24.3]} 54... h3 {[%clk 0:00:03.4]} 55. e7
{[%clk 0:00:24.6]} 55... Re3 {[%clk 0:00:03.5]} 56. Ba8 {[%clk 0:00:21.4]} 56...
h2 {[%clk 0:00:03.7]} 57. d6+ {[%clk 0:00:21.4]} 57... Kxd6 {[%clk 0:00:03.8]}
58. a4 {[%clk 0:00:19.1]} 58... Rxe7 {[%clk 0:00:03.8]} 59. f5 {[%clk
0:00:17.1]} 59... Ra7 {[%clk 0:00:04]} 60. Bf3 {[%clk 0:00:15.9]} 60... Rxa4
{[%clk 0:00:04.3]} 61. Kg6 {[%clk 0:00:16]} 61... Rf4 {[%clk 0:00:04.4]} 62. Bg2
{[%clk 0:00:16.1]} 62... Ke5 {[%clk 0:00:04.8]} 63. Bb7 {[%clk 0:00:15.4]} 63...
Rxf5 {[%clk 0:00:04.5]} 64. Kh6 {[%clk 0:00:14.4]} 64... Rf1 {[%clk 0:00:04.1]}
65. Kg5 {[%clk 0:00:14.4]} 65... h1=Q {[%clk 0:00:04.1]} 66. Bxh1 {[%clk
0:00:13.7]} 66... Rxh1 {[%clk 0:00:05]} 67. Kg4 {[%clk 0:00:13.7]} 67... Rf1
{[%clk 0:00:05.9]} 0-1